[Event "January 9 Late 2024"]
[Site "https://www.chess.com"]
[Date "2024.01.09"]
[Round "1"]
[White "Manukyan, Sargis A."]
[Black "Rose, Felix"]
[Result "1-0"]
[Board "194"]
[TimeControl "180+1"]
[WhiteFideId "13303970"]
[BlackFideId "5105722"]
[WhiteElo "2610"]
[BlackElo "2249"]
[WhiteTeam "ARM"]
[BlackTeam "MEX"]
[WhiteClock "0:00:13"]
[BlackClock "0:00:00"]

1. d4 {[%clk 0:03:00]}  Nf6 {[%clk 0:02:59]} 2. c4 {[%clk 0:03:01]}  e6 {[%clk 0:02:59]} 3. Nc3 {[%clk 0:03:01]}  d5 {[%clk 0:02:59]} 4. cxd5 {[%clk 0:03:00]}  exd5 {[%clk 0:03:00]} 5. Bg5 {[%clk 0:03:00]}  c6 {[%clk 0:03:01]} 6. e3 {[%clk 0:03:00]}  Be7 {[%clk 0:03:02]} 7. Bd3 {[%clk 0:03:00]}  Nbd7 {[%clk 0:03:03]} 8. Qc2 {[%clk 0:03:00]}  h6 {[%clk 0:03:03]} 9. Bf4 {[%clk 0:02:59]}  Nh5 {[%clk 0:03:03]} 10. Be5 {[%clk 0:02:58]}  Nxe5 {[%clk 0:02:51]} 11. dxe5 {[%clk 0:02:57]}  O-O {[%clk 0:02:47]} 12. Nf3 {[%clk 0:02:57]}  g6 {[%clk 0:02:43]} 13. O-O {[%clk 0:02:48]}  Ng7 {[%clk 0:02:42]} 14. e4 {[%clk 0:02:47]}  d4 {[%clk 0:02:38]} 15. Ne2 {[%clk 0:02:45]}  c5 {[%clk 0:02:38]} 16. b4 {[%clk 0:02:43]}  b6 {[%clk 0:02:37]} 17. bxc5 {[%clk 0:02:42]}  bxc5 {[%clk 0:02:37]} 18. Nd2 {[%clk 0:02:38]}  Qc7 {[%clk 0:02:30]} 19. Nc4 {[%clk 0:02:38]}  Be6 {[%clk 0:02:27]} 20. f4 {[%clk 0:02:37]}  Bh4 {[%clk 0:02:03]} 21. Nd6 {[%clk 0:02:30]}  Be7 {[%clk 0:01:59]} 22. Nxd4 {[%clk 0:02:25]}  Bxd6 {[%clk 0:01:57]} 23. Nb5 {[%clk 0:02:25]}  Qb6 {[%clk 0:01:51]} 24. Nxd6 {[%clk 0:02:07]}  c4+ {[%clk 0:01:50]} 25. Kh1 {[%clk 0:02:07]}  cxd3 {[%clk 0:01:51]} 26. Qxd3 {[%clk 0:02:08]}  Qb2 {[%clk 0:01:38]} 27. f5 {[%clk 0:02:00]}  Bxa2 {[%clk 0:01:27]} 28. f6 {[%clk 0:01:42]}  Ne8 {[%clk 0:01:03]} 29. Qe3 {[%clk 0:00:50]}  Kh7 {[%clk 0:00:41]} 30. Qf4 {[%clk 0:00:37]}  Rd8 {[%clk 0:00:32]} 31. Rad1 {[%clk 0:00:34]}  Nxd6 {[%clk 0:00:22]} 32. exd6 {[%clk 0:00:35]}  Be6 {[%clk 0:00:21]} 33. Rd3 {[%clk 0:00:32]}  Qb5 {[%clk 0:00:13]} 34. Rfd1 {[%clk 0:00:30]}  Rd7 {[%clk 0:00:12]} 35. e5 {[%clk 0:00:31]}  Rc8 {[%clk 0:00:09]} 36. h3 {[%clk 0:00:29]}  a5 {[%clk 0:00:08]} 37. Rd4 {[%clk 0:00:29]}  Bb3 {[%clk 0:00:07]} 38. Rb1 {[%clk 0:00:28]}  a4 {[%clk 0:00:07]} 39. Qe3 {[%clk 0:00:26]}  Qc5 {[%clk 0:00:04]} 40. Qd2 {[%clk 0:00:23]}  Qc2 {[%clk 0:00:03]} 41. e6 {[%clk 0:00:12]}  Qxb1+ {[%clk 0:00:02]} 42. Kh2 {[%clk 0:00:12]}  fxe6 {[%clk 0:00:00]} 43. Rh4 {[%clk 0:00:13]} 1-0

[Event "January 9 Late 2024"]
[Site "https://www.chess.com"]
[Date "2024.01.09"]
[Round "1"]
[White "Rodriguez Dominguez, Melissa"]
[Black "Erdogan, Anil Berk"]
[Result "0-1"]
[Board "195"]
[TimeControl "180+1"]
[WhiteFideId "3517560"]
[BlackFideId "6348173"]
[WhiteElo "2249"]
[BlackElo "2608"]
[WhiteTeam "CUB"]
[BlackTeam "TUR"]
[WhiteClock "0:00:51"]
[BlackClock "0:01:49"]

1. e4 {[%clk 0:02:04]}  c6 {[%clk 0:02:59]} 2. c4 {[%clk 0:01:58]}  d5 {[%clk 0:02:58]} 3. exd5 {[%clk 0:01:59]}  cxd5 {[%clk 0:02:59]} 4. cxd5 {[%clk 0:01:59]}  Nf6 {[%clk 0:02:59]} 5. Qa4+ {[%clk 0:01:57]}  Nbd7 {[%clk 0:02:58]} 6. Nc3 {[%clk 0:01:56]}  g6 {[%clk 0:02:59]} 7. Nf3 {[%clk 0:01:55]}  Bg7 {[%clk 0:02:59]} 8. d4 {[%clk 0:01:54]}  O-O {[%clk 0:03:00]} 9. Be2 {[%clk 0:01:47]}  Nb6 {[%clk 0:03:00]} 10. Qb3 {[%clk 0:01:47]}  Nfxd5 {[%clk 0:02:59]} 11. O-O {[%clk 0:01:46]}  Be6 {[%clk 0:02:59]} 12. Nxd5 {[%clk 0:01:44]}  Bxd5 {[%clk 0:03:00]} 13. Qe3 {[%clk 0:01:41]}  Rc8 {[%clk 0:02:49]} 14. Ne5 {[%clk 0:01:33]}  e6 {[%clk 0:02:45]} 15. f4 {[%clk 0:01:32]}  Nc4 {[%clk 0:02:42]} 16. Bxc4 {[%clk 0:01:31]}  Bxc4 {[%clk 0:02:42]} 17. Rd1 {[%clk 0:01:30]}  Bd5 {[%clk 0:02:34]} 18. Bd2 {[%clk 0:01:29]}  Rc2 {[%clk 0:02:31]} 19. b3 {[%clk 0:01:24]}  Qh4 {[%clk 0:02:19]} 20. Nf3 {[%clk 0:01:23]}  Bxf3 {[%clk 0:02:12]} 21. Qxf3 {[%clk 0:01:24]}  Bxd4+ {[%clk 0:02:12]} 22. Kh1 {[%clk 0:01:25]}  Bxa1 {[%clk 0:02:11]} 23. Bb4 {[%clk 0:01:24]}  Bg7 {[%clk 0:02:01]} 24. Bxf8 {[%clk 0:01:16]}  Bxf8 {[%clk 0:02:02]} 25. g3 {[%clk 0:01:13]}  Qh5 {[%clk 0:02:00]} 26. Qxh5 {[%clk 0:01:07]}  gxh5 {[%clk 0:02:00]} 27. Rd7 {[%clk 0:01:07]}  Rxa2 {[%clk 0:01:55]} 28. Rxb7 {[%clk 0:01:08]}  a5 {[%clk 0:01:55]} 29. h4 {[%clk 0:01:06]}  Bb4 {[%clk 0:01:56]} 30. Rb5 {[%clk 0:01:05]}  Rb2 {[%clk 0:01:54]} 31. Rxh5 {[%clk 0:01:04]}  Rxb3 {[%clk 0:01:54]} 32. Rg5+ {[%clk 0:01:05]}  Kf8 {[%clk 0:01:54]} 33. Rh5 {[%clk 0:01:04]}  Kg7 {[%clk 0:01:50]} 34. Rg5+ {[%clk 0:01:04]}  Kh8 {[%clk 0:01:50]} 35. h5 {[%clk 0:01:04]}  h6 {[%clk 0:01:50]} 36. Rb5 {[%clk 0:00:59]}  a4 {[%clk 0:01:50]} 37. Rb7 {[%clk 0:00:58]}  Kg7 {[%clk 0:01:49]} 38. g4 {[%clk 0:00:58]}  a3 {[%clk 0:01:48]} 39. g5 {[%clk 0:00:57]}  hxg5 {[%clk 0:01:48]} 40. fxg5 {[%clk 0:00:58]}  Rh3+ {[%clk 0:01:47]} 41. Kg2 {[%clk 0:00:58]}  Rxh5 {[%clk 0:01:48]} 42. Rxb4 {[%clk 0:00:57]}  Rxg5+ {[%clk 0:01:48]} 43. Kf3 {[%clk 0:00:55]}  Ra5 {[%clk 0:01:49]} 44. Rb1 {[%clk 0:00:55]}  a2 {[%clk 0:01:49]} 45. Ra1 {[%clk 0:00:51]}  f5 {[%clk 0:01:49]} 0-1

[Event "January 9 Late 2024"]
[Site "https://www.chess.com"]
[Date "2024.01.09"]
[Round "1"]
[White "Zhu, Jiner"]
[Black "Harish, Neeraj"]
[Result "1-0"]
[Board "196"]
[TimeControl "180+1"]
[WhiteFideId "8608059"]
[BlackFideId "30958130"]
[WhiteElo "2608"]
[BlackElo "2248"]
[WhiteTeam "CHN"]
[BlackTeam "USA"]
[WhiteClock "0:00:14"]
[BlackClock "0:00:01"]

1. c4 {[%clk 0:03:00]}  e6 {[%clk 0:02:58]} 2. Nc3 {[%clk 0:03:01]}  d5 {[%clk 0:02:59]} 3. e3 {[%clk 0:03:01]}  Nf6 {[%clk 0:02:55]} 4. Nf3 {[%clk 0:03:01]}  Be7 {[%clk 0:02:55]} 5. b3 {[%clk 0:03:01]}  O-O {[%clk 0:02:55]} 6. Bb2 {[%clk 0:03:02]}  c5 {[%clk 0:02:53]} 7. cxd5 {[%clk 0:03:01]}  Nxd5 {[%clk 0:02:52]} 8. Qc2 {[%clk 0:02:54]}  Bf6 {[%clk 0:02:43]} 9. a3 {[%clk 0:02:52]}  Nxc3 {[%clk 0:02:39]} 10. dxc3 {[%clk 0:02:51]}  Nc6 {[%clk 0:02:38]} 11. Bd3 {[%clk 0:02:48]}  g6 {[%clk 0:02:35]} 12. O-O {[%clk 0:02:48]}  b6 {[%clk 0:02:32]} 13. Rad1 {[%clk 0:02:46]}  Qe7 {[%clk 0:02:32]} 14. c4 {[%clk 0:02:40]}  Bb7 {[%clk 0:02:25]} 15. Be4 {[%clk 0:02:39]}  Rad8 {[%clk 0:02:01]} 16. h3 {[%clk 0:02:38]}  Bxb2 {[%clk 0:01:54]} 17. Qxb2 {[%clk 0:02:38]}  f5 {[%clk 0:01:54]} 18. Bxc6 {[%clk 0:02:36]}  Bxc6 {[%clk 0:01:54]} 19. Ne5 {[%clk 0:02:37]}  Bb7 {[%clk 0:01:51]} 20. b4 {[%clk 0:02:34]}  f4 {[%clk 0:01:41]} 21. Ng4 {[%clk 0:02:09]}  h5 {[%clk 0:01:31]} 22. Rxd8 {[%clk 0:01:36]}  Rxd8 {[%clk 0:01:17]} 23. Ne5 {[%clk 0:01:14]}  Qg5 {[%clk 0:01:14]} 24. e4 {[%clk 0:01:12]}  Bxe4 {[%clk 0:00:55]} 25. f3 {[%clk 0:01:12]}  Rd4 {[%clk 0:00:40]} 26. fxe4 {[%clk 0:00:31]}  Qxe5 {[%clk 0:00:40]} 27. bxc5 {[%clk 0:00:32]}  Qxc5 {[%clk 0:00:39]} 28. Kh1 {[%clk 0:00:32]}  Rxe4 {[%clk 0:00:36]} 29. Qf6 {[%clk 0:00:30]}  Qf5 {[%clk 0:00:30]} 30. Qd8+ {[%clk 0:00:30]}  Kg7 {[%clk 0:00:29]} 31. Rd1 {[%clk 0:00:30]}  Qf8 {[%clk 0:00:18]} 32. Rd7+ {[%clk 0:00:26]}  Kg8 {[%clk 0:00:17]} 33. Qg5 {[%clk 0:00:18]}  Re1+ {[%clk 0:00:13]} 34. Kh2 {[%clk 0:00:18]}  Qf5 {[%clk 0:00:13]} 35. Qe7 {[%clk 0:00:16]}  Qe5 {[%clk 0:00:01]} 36. Qf7+ {[%clk 0:00:14]} 1-0

[Event "January 9 Late 2024"]
[Site "https://www.chess.com"]
[Date "2024.01.09"]
[Round "1"]
[White "Andreassen, Lars"]
[Black "Yang, Kevin"]
[Result "0-1"]
[Board "197"]
[TimeControl "180+1"]
[WhiteFideId "1504878"]
[BlackFideId "30908485"]
[WhiteElo "2245"]
[BlackElo "2608"]
[WhiteTeam "NOR"]
[BlackTeam "USA"]
[WhiteClock "0:00:00"]
[BlackClock "0:00:08"]

1. d4 {[%clk 0:03:00]}  Nf6 {[%clk 0:02:59]} 2. Nf3 {[%clk 0:03:01]}  e6 {[%clk 0:02:59]} 3. Bg5 {[%clk 0:03:01]}  c5 {[%clk 0:02:58]} 4. e3 {[%clk 0:03:02]}  cxd4 {[%clk 0:02:56]} 5. exd4 {[%clk 0:03:01]}  Be7 {[%clk 0:02:55]} 6. Bd3 {[%clk 0:03:00]}  b6 {[%clk 0:02:53]} 7. O-O {[%clk 0:03:00]}  Bb7 {[%clk 0:02:53]} 8. Nbd2 {[%clk 0:03:00]}  d6 {[%clk 0:02:51]} 9. Re1 {[%clk 0:03:00]}  Nbd7 {[%clk 0:02:49]} 10. Qe2 {[%clk 0:03:00]}  h6 {[%clk 0:02:46]} 11. Bh4 {[%clk 0:03:00]}  O-O {[%clk 0:02:43]} 12. Rad1 {[%clk 0:02:59]}  Re8 {[%clk 0:02:37]} 13. h3 {[%clk 0:02:58]}  Qc7 {[%clk 0:02:35]} 14. c3 {[%clk 0:02:56]}  a6 {[%clk 0:02:35]} 15. Ne4 {[%clk 0:02:48]}  Nd5 {[%clk 0:02:28]} 16. Bxe7 {[%clk 0:02:47]}  Rxe7 {[%clk 0:02:27]} 17. Bb1 {[%clk 0:02:46]}  Rae8 {[%clk 0:02:17]} 18. a3 {[%clk 0:02:31]}  f5 {[%clk 0:02:02]} 19. Ng3 {[%clk 0:02:27]}  Nf4 {[%clk 0:01:55]} 20. Qe3 {[%clk 0:02:19]}  Nd5 {[%clk 0:01:44]} 21. Qd3 {[%clk 0:02:11]}  N7f6 {[%clk 0:01:36]} 22. c4 {[%clk 0:01:29]}  Nf4 {[%clk 0:01:34]} 23. Qe3 {[%clk 0:01:25]}  g5 {[%clk 0:01:34]} 24. Ba2 {[%clk 0:01:07]}  Kf8 {[%clk 0:01:23]} 25. Qc3 {[%clk 0:00:55]}  b5 {[%clk 0:01:08]} 26. d5 {[%clk 0:00:50]}  Ng8 {[%clk 0:00:23]} 27. dxe6 {[%clk 0:00:47]}  Rxe6 {[%clk 0:00:23]} 28. Rxe6 {[%clk 0:00:44]}  Rxe6 {[%clk 0:00:22]} 29. Nxf5 {[%clk 0:00:44]}  Ne2+ {[%clk 0:00:21]} 30. Kh1 {[%clk 0:00:42]}  Nxc3 {[%clk 0:00:22]} 31. bxc3 {[%clk 0:00:40]}  Bxf3 {[%clk 0:00:21]} 32. gxf3 {[%clk 0:00:38]}  Rf6 {[%clk 0:00:21]} 33. Nd4 {[%clk 0:00:36]}  bxc4 {[%clk 0:00:21]} 34. Re1 {[%clk 0:00:34]}  Kf7 {[%clk 0:00:16]} 35. Re4 {[%clk 0:00:30]}  d5 {[%clk 0:00:16]} 36. Re1 {[%clk 0:00:29]}  Qd7 {[%clk 0:00:15]} 37. Kg2 {[%clk 0:00:29]}  Qd6 {[%clk 0:00:14]} 38. Bb1 {[%clk 0:00:28]}  Qxa3 {[%clk 0:00:14]} 39. Bf5 {[%clk 0:00:25]}  Qxc3 {[%clk 0:00:11]} 40. Be6+ {[%clk 0:00:24]}  Kf8 {[%clk 0:00:11]} 41. Rd1 {[%clk 0:00:21]}  Ne7 {[%clk 0:00:09]} 42. Bg4 {[%clk 0:00:20]}  Ng6 {[%clk 0:00:08]} 43. Ne6+ {[%clk 0:00:19]}  Rxe6 {[%clk 0:00:07]} 44. Bxe6 {[%clk 0:00:19]}  Nf4+ {[%clk 0:00:08]} 45. Kg3 {[%clk 0:00:20]}  Nxe6 {[%clk 0:00:08]} 46. Rd3 {[%clk 0:00:00]}  Qxd3 {[%clk 0:00:08]} 0-1

[Event "January 9 Late 2024"]
[Site "https://www.chess.com"]
[Date "2024.01.10"]
[Round "1"]
[White "Wang, Alexander J"]
[Black "Rodgers, Jack"]
[Result "0-1"]
[Board "199"]
[TimeControl "180+1"]
[WhiteFideId "30955270"]
[BlackFideId "3220885"]
[WhiteElo "2234"]
[BlackElo "2604"]
[WhiteTeam "USA"]
[BlackTeam "AUS"]
[WhiteClock "0:01:56"]
[BlackClock "0:01:38"]

1. e4 {[%clk 0:02:54]}  c5 {[%clk 0:02:59]} 2. Nf3 {[%clk 0:02:53]}  g6 {[%clk 0:02:59]} 3. d4 {[%clk 0:02:52]}  cxd4 {[%clk 0:03:00]} 4. Nxd4 {[%clk 0:02:52]}  Nc6 {[%clk 0:03:00]} 5. Nc3 {[%clk 0:02:52]}  Bg7 {[%clk 0:03:00]} 6. Be3 {[%clk 0:02:51]}  Nf6 {[%clk 0:03:00]} 7. f3 {[%clk 0:02:50]}  O-O {[%clk 0:03:00]} 8. Bc4 {[%clk 0:02:49]}  d6 {[%clk 0:02:59]} 9. O-O {[%clk 0:02:48]}  Bd7 {[%clk 0:02:58]} 10. a3 {[%clk 0:02:47]}  a6 {[%clk 0:02:56]} 11. a4 {[%clk 0:02:41]}  Rc8 {[%clk 0:02:56]} 12. Bd5 {[%clk 0:02:31]}  Nxd5 {[%clk 0:02:49]} 13. exd5 {[%clk 0:02:30]}  Ne5 {[%clk 0:02:39]} 14. Nde2 {[%clk 0:02:26]}  Nc4 {[%clk 0:02:35]} 15. Bd4 {[%clk 0:02:22]}  Nxb2 {[%clk 0:02:34]} 16. Qb1 {[%clk 0:02:15]}  Bxd4+ {[%clk 0:02:32]} 17. Nxd4 {[%clk 0:02:16]}  Qb6 {[%clk 0:02:26]} 18. Ne2 {[%clk 0:02:12]}  Nc4 {[%clk 0:01:55]} 19. Qxb6 {[%clk 0:02:12]}  Nxb6 {[%clk 0:01:56]} 20. Rab1 {[%clk 0:02:12]}  Nxd5 {[%clk 0:01:55]} 21. Rxb7 {[%clk 0:02:13]}  Bxa4 {[%clk 0:01:55]} 22. Ra1 {[%clk 0:02:10]}  Bxc2 {[%clk 0:01:48]} 23. Nxc2 {[%clk 0:02:08]}  Rxc2 {[%clk 0:01:47]} 24. Nd4 {[%clk 0:02:08]}  Rc4 {[%clk 0:01:40]} 25. Rd1 {[%clk 0:01:56]}  Rfc8 {[%clk 0:01:38]} 0-1

[Event "January 9 Late 2024"]
[Site "https://www.chess.com"]
[Date "2024.01.09"]
[Round "1"]
[White "Ozdemir, Serhan Berat"]
[Black "Jose Iraeta, Alejandro"]
[Result "1-0"]
[Board "200"]
[TimeControl "180+1"]
[WhiteFideId "6374611"]
[BlackFideId "2226537"]
[WhiteElo "2601"]
[BlackElo "2227"]
[WhiteTeam "TUR"]
[BlackTeam "ESP"]
[WhiteClock "0:00:08"]
[BlackClock "0:00:09"]

1. e4 {[%clk 0:03:00]}  e5 {[%clk 0:02:53]} 2. Nf3 {[%clk 0:03:00]}  d5 {[%clk 0:02:47]} 3. Nxe5 {[%clk 0:02:37]}  Bd6 {[%clk 0:02:41]} 4. d4 {[%clk 0:02:37]}  dxe4 {[%clk 0:02:40]} 5. Bc4 {[%clk 0:02:35]}  Bxe5 {[%clk 0:02:39]} 6. dxe5 {[%clk 0:02:35]}  Qxd1+ {[%clk 0:02:39]} 7. Kxd1 {[%clk 0:02:36]}  Nc6 {[%clk 0:02:39]} 8. Nc3 {[%clk 0:02:24]}  Bg4+ {[%clk 0:02:30]} 9. Ke1 {[%clk 0:02:21]}  O-O-O {[%clk 0:02:29]} 10. Bxf7 {[%clk 0:02:15]}  Nxe5 {[%clk 0:02:26]} 11. Bb3 {[%clk 0:01:57]}  Nf6 {[%clk 0:02:23]} 12. h3 {[%clk 0:01:54]}  Bh5 {[%clk 0:02:19]} 13. Be3 {[%clk 0:01:51]}  a6 {[%clk 0:02:12]} 14. Ne2 {[%clk 0:01:40]}  Rhe8 {[%clk 0:02:08]} 15. Ng3 {[%clk 0:01:26]}  Bf7 {[%clk 0:02:05]} 16. Bxf7 {[%clk 0:01:20]}  Nxf7 {[%clk 0:02:06]} 17. Ke2 {[%clk 0:01:20]}  Nd5 {[%clk 0:02:01]} 18. Rad1 {[%clk 0:01:16]}  g6 {[%clk 0:01:55]} 19. c4 {[%clk 0:01:14]}  Nb4 {[%clk 0:01:51]} 20. a3 {[%clk 0:01:10]}  Nc6 {[%clk 0:01:49]} 21. Rxd8+ {[%clk 0:01:05]}  Kxd8 {[%clk 0:01:47]} 22. Rd1+ {[%clk 0:01:03]}  Kc8 {[%clk 0:01:48]} 23. b3 {[%clk 0:00:56]}  Na5 {[%clk 0:01:34]} 24. Rb1 {[%clk 0:00:42]}  Ne5 {[%clk 0:00:43]} 25. Bd2 {[%clk 0:00:23]}  Nac6 {[%clk 0:00:41]} 26. Bc3 {[%clk 0:00:23]}  Nd3 {[%clk 0:00:34]} 27. Ke3 {[%clk 0:00:22]}  b6 {[%clk 0:00:28]} 28. b4 {[%clk 0:00:19]}  g5 {[%clk 0:00:23]} 29. Rf1 {[%clk 0:00:11]}  Nf4 {[%clk 0:00:23]} 30. Rg1 {[%clk 0:00:09]}  h5 {[%clk 0:00:19]} 31. Nxe4 {[%clk 0:00:08]}  g4 {[%clk 0:00:17]} 32. hxg4 {[%clk 0:00:08]}  hxg4 {[%clk 0:00:14]} 33. Kxf4 {[%clk 0:00:08]}  Rf8+ {[%clk 0:00:13]} 34. Ke3 {[%clk 0:00:09]}  Re8 {[%clk 0:00:13]} 35. f3 {[%clk 0:00:09]}  gxf3 {[%clk 0:00:13]} 36. gxf3 {[%clk 0:00:10]}  Kb7 {[%clk 0:00:13]} 37. Rg7 {[%clk 0:00:09]}  Re6 {[%clk 0:00:13]} 38. f4 {[%clk 0:00:07]}  Nd8 {[%clk 0:00:13]} 39. f5 {[%clk 0:00:07]}  Re8 {[%clk 0:00:13]} 40. Kf4 {[%clk 0:00:06]}  Kc6 {[%clk 0:00:12]} 41. b5+ {[%clk 0:00:06]}  axb5 {[%clk 0:00:12]} 42. cxb5+ {[%clk 0:00:07]}  Kxb5 {[%clk 0:00:12]} 43. Rxc7 {[%clk 0:00:08]}  Nc6 {[%clk 0:00:09]} 44. Nd6+ {[%clk 0:00:08]} 1-0

[Event "January 9 Late 2024"]
[Site "https://www.chess.com"]
[Date "2024.01.09"]
[Round "1"]
[White "Garcia Correa, Jose Ricardo"]
[Black "Shubenkova, Veronika"]
[Result "0-1"]
[Board "201"]
[TimeControl "180+1"]
[WhiteFideId "5101832"]
[BlackFideId "44124040"]
[WhiteElo "2221"]
[BlackElo "2599"]
[WhiteTeam "MEX"]
[BlackTeam "RUS"]
[WhiteClock "0:01:04"]
[BlackClock "0:02:14"]

1. e4 {[%clk 0:02:42]}  e6 {[%clk 0:03:00]} 2. d4 {[%clk 0:02:42]}  d5 {[%clk 0:03:01]} 3. Nc3 {[%clk 0:02:42]}  Nf6 {[%clk 0:03:02]} 4. Bg5 {[%clk 0:02:41]}  Be7 {[%clk 0:03:02]} 5. e5 {[%clk 0:02:42]}  Nfd7 {[%clk 0:03:02]} 6. h4 {[%clk 0:02:42]}  h6 {[%clk 0:03:02]} 7. Bxe7 {[%clk 0:02:41]}  Qxe7 {[%clk 0:03:03]} 8. Qg4 {[%clk 0:02:41]}  O-O {[%clk 0:03:03]} 9. O-O-O {[%clk 0:02:41]}  a6 {[%clk 0:03:03]} 10. f4 {[%clk 0:02:41]}  f5 {[%clk 0:03:02]} 11. Qf3 {[%clk 0:02:40]}  c5 {[%clk 0:03:02]} 12. Nge2 {[%clk 0:02:38]}  cxd4 {[%clk 0:03:01]} 13. Nxd4 {[%clk 0:02:38]}  Nc6 {[%clk 0:03:01]} 14. g4 {[%clk 0:02:38]}  Nxd4 {[%clk 0:03:01]} 15. Rxd4 {[%clk 0:02:37]}  fxg4 {[%clk 0:02:54]} 16. Qxg4 {[%clk 0:02:36]}  Rf7 {[%clk 0:02:50]} 17. Bd3 {[%clk 0:02:35]}  Nf8 {[%clk 0:02:50]} 18. Rg1 {[%clk 0:02:34]}  Qc5 {[%clk 0:02:49]} 19. Ne2 {[%clk 0:02:32]}  Bd7 {[%clk 0:02:45]} 20. Qh5 {[%clk 0:02:32]}  Rc8 {[%clk 0:02:31]} 21. Qxh6 {[%clk 0:02:29]}  Bb5 {[%clk 0:02:31]} 22. Kd1 {[%clk 0:01:41]}  Bxd3 {[%clk 0:02:30]} 23. cxd3 {[%clk 0:01:41]}  Qc2+ {[%clk 0:02:22]} 24. Ke1 {[%clk 0:01:41]}  Qxb2 {[%clk 0:02:22]} 25. f5 {[%clk 0:01:31]}  Rc2 {[%clk 0:02:17]} 26. Qe3 {[%clk 0:01:07]}  Rxe2+ {[%clk 0:02:16]} 27. Qxe2 {[%clk 0:01:07]}  Qxd4 {[%clk 0:02:16]} 28. Rg4 {[%clk 0:01:07]}  Qa1+ {[%clk 0:02:14]} 29. Kd2 {[%clk 0:01:07]}  Qxa2+ {[%clk 0:02:14]} 30. Ke3 {[%clk 0:01:07]}  Qxe2+ {[%clk 0:02:14]} 31. Kxe2 {[%clk 0:01:04]}  Rxf5 {[%clk 0:02:14]} 0-1

[Event "January 9 Late 2024"]
[Site "https://www.chess.com"]
[Date "2024.01.09"]
[Round "1"]
[White "Cardozo Munar, Carlos Eduardo"]
[Black "Pinheiro, Iung Alicio de O."]
[Result "0-1"]
[Board "203"]
[TimeControl "180+1"]
[WhiteFideId "4409477"]
[BlackFideId "2104350"]
[WhiteElo "2213"]
[BlackElo "2593"]
[WhiteTeam "COL"]
[BlackTeam "BRA"]
[WhiteClock "0:00:17"]
[BlackClock "0:00:14"]

1. d4 {[%clk 0:03:00]}  Nf6 {[%clk 0:02:57]} 2. Bg5 {[%clk 0:02:59]}  d5 {[%clk 0:02:48]} 3. Nd2 {[%clk 0:02:58]}  Nbd7 {[%clk 0:02:41]} 4. e3 {[%clk 0:02:58]}  h6 {[%clk 0:02:40]} 5. Bh4 {[%clk 0:02:58]}  c5 {[%clk 0:02:38]} 6. c3 {[%clk 0:02:57]}  e6 {[%clk 0:02:36]} 7. Bd3 {[%clk 0:02:56]}  Bd6 {[%clk 0:02:32]} 8. f4 {[%clk 0:02:56]}  b6 {[%clk 0:01:16]} 9. Ngf3 {[%clk 0:02:50]}  Bb7 {[%clk 0:01:16]} 10. Ne5 {[%clk 0:02:48]}  Qc7 {[%clk 0:01:15]} 11. a4 {[%clk 0:02:46]}  a6 {[%clk 0:01:14]} 12. O-O {[%clk 0:02:43]}  Ne4 {[%clk 0:01:08]} 13. Qh5 {[%clk 0:02:31]}  Ndf6 {[%clk 0:01:04]} 14. Nxe4 {[%clk 0:02:23]}  Nxh5 {[%clk 0:00:58]} 15. Nxd6+ {[%clk 0:02:18]}  Qxd6 {[%clk 0:00:58]} 16. f5 {[%clk 0:02:11]}  O-O {[%clk 0:00:45]} 17. f6 {[%clk 0:02:11]}  Nxf6 {[%clk 0:00:44]} 18. Bxf6 {[%clk 0:02:11]}  gxf6 {[%clk 0:00:45]} 19. Rxf6 {[%clk 0:02:11]}  Kg7 {[%clk 0:00:41]} 20. Raf1 {[%clk 0:02:12]}  Qc7 {[%clk 0:00:30]} 21. R1f3 {[%clk 0:01:54]}  Qe7 {[%clk 0:00:26]} 22. R6f4 {[%clk 0:01:24]}  f5 {[%clk 0:00:23]} 23. Rg3+ {[%clk 0:01:22]}  Kh7 {[%clk 0:00:23]} 24. Rh3 {[%clk 0:01:00]}  Rg8 {[%clk 0:00:23]} 25. Rfh4 {[%clk 0:00:56]}  Qf6 {[%clk 0:00:23]} 26. Kf2 {[%clk 0:00:48]}  Rg5 {[%clk 0:00:23]} 27. g4 {[%clk 0:00:43]}  Rf8 {[%clk 0:00:18]} 28. gxf5 {[%clk 0:00:42]}  Rxf5+ {[%clk 0:00:18]} 29. Ke2 {[%clk 0:00:30]}  c4 {[%clk 0:00:17]} 30. Bxf5+ {[%clk 0:00:29]}  Qxf5 {[%clk 0:00:13]} 31. Rxh6+ {[%clk 0:00:29]}  Kg7 {[%clk 0:00:14]} 32. R6h4 {[%clk 0:00:17]}  Qf1+ {[%clk 0:00:13]} 33. Kd2 {[%clk 0:00:17]}  Rf2# {[%clk 0:00:14]} 0-1

[Event "January 9 Late 2024"]
[Site "https://www.chess.com"]
[Date "2024.01.09"]
[Round "1"]
[White "Kochiev, Ivan"]
[Black "Sailer, Mike"]
[Result "1-0"]
[Board "206"]
[TimeControl "180+1"]
[WhiteFideId "2917890"]
[BlackFideId "2012901"]
[WhiteElo "2592"]
[BlackElo "2209"]
[WhiteTeam "BUL"]
[BlackTeam "USA"]
[WhiteClock "0:00:46"]
[BlackClock "0:00:06"]

1. e4 {[%clk 0:03:00]}  d5 {[%clk 0:02:58]} 2. exd5 {[%clk 0:03:00]}  Qxd5 {[%clk 0:02:57]} 3. Nf3 {[%clk 0:03:01]}  Bg4 {[%clk 0:02:57]} 4. Be2 {[%clk 0:03:01]}  Nc6 {[%clk 0:02:57]} 5. d4 {[%clk 0:02:59]}  O-O-O {[%clk 0:02:57]} 6. c4 {[%clk 0:02:59]}  Qf5 {[%clk 0:02:57]} 7. Be3 {[%clk 0:02:59]}  e5 {[%clk 0:02:56]} 8. d5 {[%clk 0:02:59]}  Nf6 {[%clk 0:02:55]} 9. Nc3 {[%clk 0:02:56]}  e4 {[%clk 0:02:51]} 10. Nd4 {[%clk 0:02:54]}  Nxd4 {[%clk 0:02:50]} 11. Qxd4 {[%clk 0:02:52]}  b6 {[%clk 0:02:49]} 12. Bxg4 {[%clk 0:02:50]}  Qxg4 {[%clk 0:02:27]} 13. O-O {[%clk 0:02:50]}  Bc5 {[%clk 0:02:08]} 14. Qd2 {[%clk 0:02:47]}  Bxe3 {[%clk 0:02:06]} 15. Qxe3 {[%clk 0:02:48]}  Rhe8 {[%clk 0:02:03]} 16. b4 {[%clk 0:02:39]}  Re5 {[%clk 0:01:52]} 17. h3 {[%clk 0:02:17]}  Qh4 {[%clk 0:01:27]} 18. a4 {[%clk 0:02:14]}  g5 {[%clk 0:01:16]} 19. f4 {[%clk 0:01:57]}  gxf4 {[%clk 0:00:58]} 20. Qxf4 {[%clk 0:01:48]}  Qxf4 {[%clk 0:00:55]} 21. Rxf4 {[%clk 0:01:49]}  Rd6 {[%clk 0:00:47]} 22. Raf1 {[%clk 0:01:47]}  Nh5 {[%clk 0:00:40]} 23. Rxe4 {[%clk 0:01:39]}  Rg5 {[%clk 0:00:29]} 24. Rxf7 {[%clk 0:01:28]}  Rdg6 {[%clk 0:00:25]} 25. g4 {[%clk 0:01:27]}  Nf6 {[%clk 0:00:21]} 26. Ree7 {[%clk 0:01:26]}  Nxg4 {[%clk 0:00:14]} 27. hxg4 {[%clk 0:00:57]}  Rxg4+ {[%clk 0:00:13]} 28. Kf1 {[%clk 0:00:57]}  Rxc4 {[%clk 0:00:10]} 29. Nb5 {[%clk 0:00:56]}  Rh6 {[%clk 0:00:06]} 30. Nxa7+ {[%clk 0:00:50]}  Kb8 {[%clk 0:00:05]} 31. Nc6+ {[%clk 0:00:50]}  Kc8 {[%clk 0:00:05]} 32. Re8+ {[%clk 0:00:44]}  Kb7 {[%clk 0:00:06]} 33. Rb8+ {[%clk 0:00:45]}  Ka6 {[%clk 0:00:06]} 34. b5# {[%clk 0:00:46]} 1-0